bitfinex-derivatives/quotes_ETHF0:USTF0_20250430
["timestamp","ask_amount","ask_price","bid_price","bid_amount"]
[1746023022584,7.79402482,1761.0,1760.9,9.11629]
[1746023022786,1.13543,1761.0,1760.9,7.9808]
[1746023023091,5.92251,1761.1,1760.9,7.9808]
[1746023023390,4.7871,1761.1,1760.9,9.11627]
[1746023023694,1.13543,1761.0,1760.9,7.9808]
[1746023024189,5.69703,1761.0,1760.9,3.2078]
[1746023024387,12.35562482,1761.0,1760.9,3.2078]
[1746023025486,1.13556,1760.8,1760.7,4.9]
[1746023025686,1.13556,1760.8,1760.3,7.9458]
[1746023025687,5.67799,1760.8,1760.4,1.1358]
[1746023025886,4.5616,1760.7,1760.4,1.1358]
[1746023026081,7.41496,1760.9,1760.5,40.8]
[1746023026393,4.5616,1760.8,1760.7,4.34342]
[1746023026592,5.69716,1760.8,1760.7,4.34342]
[1746023026781,1.13556,1760.8,1760.7,4.34342]
[1746023026981,1.13556,1760.9,1760.8,1.13555]
[1746023027192,1.13556,1760.8,1760.7,7.6213]
[1746023027882,4.5616,1761.0,1760.7,7.6213]
[1746023028086,5.69708,1761.0,1760.8,1.13551]
[1746023028282,5.69708,1761.0,1760.7,7.6213]
[1746023028283,5.69703,1761.0,1760.9,8.75679]
[1746023028488,5.69703,1761.0,1760.9,7.6213]
[1746023028692,5.69703,1761.0,1760.9,3.2078]
[1746023028885,1.13556,1760.8,1760.7,8.75688]
[1746023029090,4.5616,1761.0,1760.7,7.6213]
[1746023029396,1.13539,1761.1,1761.0,1.13537]
[1746023029693,1.13543,1761.0,1760.9,4.34325]
[1746023029994,1.13556,1760.8,1760.7,4.3434]
[1746023030192,1.13554,1760.9,1760.8,1.13552]
[1746023030397,1.13549,1760.9,1760.8,1.13552]
[1746023030586,2.83842,1761.1,1760.7,3.2078]
[1746023030783,9.49703482,1761.1,1760.7,3.2078]
[1746023030989,1.13555,1760.9,1760.8,1.13553]
[1746023031189,1.13549,1761.0,1760.9,1.13545]
[1746023031389,1.13549,1761.0,1760.9,3.2078]
[1746023031695,1.13549,1760.9,1760.8,1.13553]
[1746023031993,6.65859482,1761.0,1760.9,1.13549]
[1746023032193,1.13544,1761.0,1760.9,1.13549]
[1746023032699,1.13553,1760.9,1760.8,1.1355]
[1746023033089,9.49703482,1761.1,1760.7,3.2078]
[1746023033090,1.13547,1761.0,1760.9,1.13547]
[1746023033397,1.13551,1760.9,1760.8,1.13552]
[1746023033588,4.7867,1761.0,1760.9,1.13549]
[1746023033795,1.1354,1761.1,1761.0,1.13541]
[1746023034093,1.13545,1761.0,1760.9,4.34325]
[1746023034285,4.7867,1761.2,1761.1,1.13536]
[1746023034490,1.13528,1761.3,1761.2,1.13527]
[1746023034797,1.1353,1761.2,1761.1,4.34314]
[1746023035092,1.1353,1761.2,1761.1,3.2078]
[1746023035298,1.1353,1761.2,1761.1,4.34316]
[1746023035595,1.13536,1761.1,1761.0,6.03538]
[1746023035797,5.92206,1761.1,1761.0,1.13543]
[1746023036002,12.58065482,1761.1,1761.0,1.13543]
[1746023036295,11.44529482,1761.1,1761.0,1.13543]
[1746023036496,4.7872,1761.4,1761.0,1.13543]
[1746023036696,1.13535,1761.2,1761.1,1.13534]
[1746023036995,1.13543,1761.0,1760.9,4.34326]
[1746023037194,4.7322,1761.1,1761.0,1.13543]
[1746023037692,1.1352,1761.4,1761.1,3.97368]
[1746023037887,1.92639483,1761.4,1761.3,1.1352]
[1746023038093,1.92639483,1761.4,1761.2,4.34305]
[1746023038297,1.92639483,1761.4,1761.3,1.13524]
[1746023038792,3.2078,1761.7,1761.6,1.13504]
[1746023039096,1.1343,1762.8,1762.5,1.13444]
[1746023039289,1.13437,1762.7,1762.5,0.39702541]
[1746023039492,1.13437,1762.7,1762.4,3.2078]
[1746023039700,2.83539,1763.0,1762.3,40.8]
[1746023039890,6.04351,1762.8,1762.1,8.1078]
[1746023040091,1.13452,1762.5,1762.2,1.13465]
[1746023040291,3.2078,1763.3,1762.4,3.2078]
[1746023040491,3.2078,1763.3,1762.8,3.2078]
[1746023040691,1.13425,1762.9,1762.6,3.2078]
[1746023040897,4.4376,1762.8,1762.6,4.34217]
[1746023041097,4.4376,1762.8,1762.6,3.2078]
[1746023041299,1.13415,1763.0,1762.7,1.1343]
[1746023041504,5.57172,1763.1,1762.9,3.2078]
[1746023041697,4.4376,1763.1,1762.9,3.2078]
[1746023042598,5.57172,1763.1,1762.9,3.2078]
[1746023042792,4.4376,1763.1,1762.9,3.2078]
[1746023042994,9.0075,1763.2,1762.9,3.2078]
[1746023043195,5.59144,1763.0,1762.9,3.2078]
[1746023043391,5.59144,1763.0,1762.3,49.7101]
[1746023043392,7.29267,1763.0,1762.3,48.3429]
[1746023043695,1.13439,1762.7,1762.5,3.2078]
[1746023043890,1.13436,1762.7,1762.5,3.2078]
[1746023044500,1.13433,1762.8,1762.5,4.34224]
[1746023044699,1.13433,1762.8,1762.7,3.2078]
[1746023045497,1.13459,1762.3,1762.2,3.2078]
[1746023045698,1.13472,1762.1,1762.0,8.3698]
[1746023045904,1.13472,1762.1,1762.0,3.2078]
[1746023046198,2.83655,1762.3,1762.0,3.2078]
[1746023046503,1.13485,1761.9,1761.8,3.2078]
[1746023046690,1.13491,1761.8,1761.7,7.51274868]
[1746023046896,1.13491,1761.8,1761.7,12.01744868]
[1746023047097,3.2078,1762.4,1761.7,17.01744868]
[1746023047297,56.68246,1763.8,1762.2,4.3424]
[1746023047298,1.13449,1762.5,1762.2,4.3424]
[1746023047498,1.13446,1762.5,1762.4,3.2078]
[1746023047795,2.83625,1762.5,1761.9,8.3688]
[1746023047998,1.13465,1762.3,1762.1,7.7125]
[1746023048199,1.13466,1762.2,1762.1,3.2078]
[1746023048596,1.13472,1762.1,1761.9,8.3688]
[1746023048804,2.83634,1762.4,1761.9,8.3688]
[1746023048998,2.83649,1762.3,1761.9,8.3688]
[1746023049200,6.04403,1762.5,1761.9,8.3688]
[1746023049403,1.13485,1761.9,1761.8,3.2078]
[1746023049702,8.3688,1762.4,1761.8,3.2078]
[1746023050007,1.13461,1762.3,1762.1,1.1347]
[1746023050204,1.13459,1762.3,1762.2,3.2078]
[1746023051006,2.83567,1762.9,1762.2,8.2078]
[1746023051195,2.83574,1762.8,1762.2,13.8144]
[1746023051401,3.2078,1763.1,1762.6,1.1344]
[1746023051601,1.13426,1762.9,1762.8,3.2078]
[1746023051905,3.2078,1763.5,1762.8,3.2078]
[1746023052107,1.13409,1763.1,1763.0,3.2078]
[1746023052304,1.13406,1763.2,1763.0,4.34192]
[1746023052499,1.134,1763.3,1763.0,3.2078]
[1746023052699,1.13385,1763.5,1763.2,3.2078]
[1746023052904,1.13385,1763.5,1763.4,3.2078]
[1746023053505,1.13388,1763.4,1763.3,0.39899832]
[1746023053702,1.13388,1763.4,1763.3,3.2078]
[1746023053897,2.83317,1764.4,1763.6,1.13369]
[1746023054098,3.2078,1764.5,1764.0,3.2078]
[1746023054306,1.13343,1764.1,1764.0,3.2078]
[1746023055712,1.13356,1763.9,1763.8,45.961]
[1746023055904,1.13356,1763.9,1763.8,5.161]
[1746023056106,2.83342,1764.3,1763.8,5.161]
[1746023056307,1.1335,1764.0,1763.9,3.2078]
[1746023057507,1.13358,1763.9,1763.7,8.3668]
[1746023057707,7.58149,1764.2,1763.7,8.3668]
[1746023057908,1.1335,1764.0,1763.9,3.2078]
[1746023058512,1.13363,1763.8,1763.7,49.1668]
[1746023058715,1.13363,1763.8,1763.7,44.0078]
[1746023059105,1.13363,1763.8,1763.7,40.8]
[1746023059306,1.13376,1763.6,1763.5,3.2078]
[1746023059705,1.13376,1763.6,1763.5,44.0078]
[1746023060109,2.83343,1764.2,1763.5,49.0078]
[1746023060306,1.13369,1763.7,1763.6,3.2078]
[1746023060508,1.13388,1763.4,1763.3,3.60471143]
[1746023060908,1.13388,1763.4,1763.3,3.2078]
[1746023061312,2.83472,1763.4,1762.9,3.2078]
[1746023061508,4.6145,1763.3,1762.9,8.77444413]
[1746023061704,4.6145,1763.3,1763.1,3.2078]
[1746023061705,1.13406,1763.2,1763.1,3.2078]
[1746023062107,1.13383,1763.5,1763.1,13.3658]
[1746023062307,1.13382,1763.5,1763.4,3.2078]
[1746023062605,2.83407,1763.8,1763.4,3.2078]
[1746023062811,1.13381,1763.6,1763.4,3.2078]
[1746023063006,1.13375,1763.7,1763.5,1.13381]
[1746023063200,3.2078,1764.0,1763.4,3.2078]
[1746023063405,86.12875373,1769.1,1763.4,3.2078]
[1746023063406,1.13356,1763.9,1763.8,3.2078]
[1746023063607,1.13342,1764.2,1764.0,1.13348]
[1746023063908,4.8206,1764.6,1764.0,3.2078]
[1746023064104,2.8305,1766.1,1765.0,3.2078]
[1746023064305,2.83014,1766.3,1765.6,3.2078]
[1746023064614,7.65074,1766.3,1765.8,3.2078]
[1746023064909,1.13234,1765.8,1765.7,8.6068]
[1746023065114,1.13234,1765.8,1765.7,3.2078]
[1746023065312,2.8313,1765.6,1765.1,7.9938]
[1746023065611,1.13273,1765.2,1765.1,3.2078]
[1746023065918,2.83135,1765.5,1765.0,3.2078]
[1746023065919,7.65195,1765.5,1765.0,3.2078]
[1746023066113,1.13279,1765.1,1765.0,3.2078]
[1746023066409,1.13292,1764.9,1764.6,0.40128379]
[1746023066606,2.83151,1765.4,1764.8,3.2078]
[1746023066809,2.83081,1765.9,1765.2,3.2078]
[1746023067111,1.13251,1765.6,1765.4,3.2078]
[1746023067314,1.13251,1765.6,1765.5,4.7438]
[1746023067510,4.514,1766.0,1765.5,10.1418]
[1746023067718,4.4793,1766.1,1765.7,3.2078]
[1746023068008,1.13226,1766.0,1765.9,3.2078]
[1746023068209,2.83022,1766.2,1765.9,3.2078]
[1746023068417,3.2078,1766.8,1765.9,3.2078]
[1746023068708,3.2078,1766.8,1765.7,3.2078]
[1746023068709,4.4793,1766.6,1765.7,3.2078]
[1746023069012,1.13234,1765.8,1765.7,3.2078]
[1746023069209,2.82997,1766.4,1765.7,3.2078]
[1746023069508,1.13228,1765.9,1765.8,4.6041]
[1746023069905,1.13234,1765.8,1765.7,3.2078]
[1746023070715,1.13256,1765.5,1765.4,3.2078]
[1746023071016,1.13254,1765.5,1765.4,3.2078]
[1746023071221,4.7394,1765.8,1765.4,44.0078]
[1746023071414,1.13241,1765.7,1765.6,3.2078]
[1746023071820,6.13241,1765.7,1765.6,3.2078]
[1746023072325,1.1326,1765.4,1765.3,48.6119]
[1746023072519,1.1326,1765.4,1765.3,7.8119]
[1746023072720,1.13255,1765.5,1765.3,7.8119]
[1746023072923,1.13255,1765.5,1765.4,4.7408]
[1746023073228,1.1326,1765.4,1765.3,3.2078]
[1746023073421,5.8855,1765.4,1765.3,3.2078]
[1746023073622,14.7346,1766.0,1765.4,1.13256]
[1746023073821,9.3396,1766.0,1765.5,4.7408]
[1746023074019,1.13247,1765.6,1765.5,4.7408]
[1746023074724,1.13243,1765.7,1765.5,4.7408]
[1746023074922,1.13247,1765.6,1765.5,4.7408]
[1746023075123,1.13254,1765.5,1765.4,3.2078]
[1746023075514,8.49453,1765.4,1765.0,3.2078]
[1746023075721,8.49453,1765.4,1764.6,0.4183107]
[1746023075722,2.83194,1765.2,1764.7,4.8445]
[1746023075920,2.83215,1765.0,1764.4,3.2078]
[1746023076116,4.7003,1764.9,1764.4,8.0523]
[1746023076420,4.7244,1765.2,1764.6,3.2078]
[1746023076623,9.4247,1765.2,1764.8,3.2078]
[1746023076828,1.13281,1765.1,1765.0,3.2078]
[1746023077022,1.13286,1765.0,1764.9,4.8445]
[1746023077223,1.13298,1764.8,1764.7,3.2078]
[1746023077628,4.7003,1765.1,1764.7,3.2078]
[1746023077931,1.13298,1764.9,1764.8,4.8445]
[1746023078823,1.13298,1764.8,1764.7,3.2078]
[1746023079023,5.77258,1764.8,1764.7,3.2078]
[1746023079223,1.13298,1764.9,1764.7,3.2078]
[1746023079522,1.13281,1765.1,1764.8,5.63706]
[1746023079721,1.13281,1765.1,1765.0,3.2078]
[1746023080533,1.13281,1765.1,1765.0,3.19885151]
[1746023082326,1.13279,1765.1,1765.0,3.19885151]
[1746023082518,1.13298,1764.8,1764.6,5.5833]
[1746023082726,2.8322,1765.0,1764.6,5.5833]
[1746023082727,4.6743,1765.0,1764.7,7.658]
[1746023082931,2.83185,1765.2,1764.7,8.791]
[1746023083123,2.83185,1765.2,1764.7,7.658]
[1746023083124,7.50615,1765.2,1764.7,7.658]
[1746023083331,1.13281,1765.1,1764.9,1.13287]
[1746023083625,4.7244,1765.6,1765.0,7.658]
[1746023083832,12.23004,1765.6,1765.1,4.34054]
[1746023084026,1.1326,1765.4,1765.3,3.2078]
[1746023084522,7.28553,1765.7,1765.3,3.2078]
[1746023084728,1.1326,1765.4,1765.3,3.2078]
[1746023084924,1.13243,1765.7,1765.5,1.13251]
[1746023085124,1.13247,1765.6,1765.5,3.2078]
[1746023085826,1.13279,1765.1,1765.0,3.2078]
[1746023087028,1.13298,1764.8,1764.7,3.2078]
[1746023087227,1.13318,1764.5,1764.4,0.40468837]
[1746023087433,1.13332,1764.3,1764.1,1.13341]
[1746023087730,3.2078,1764.5,1764.1,1.13337]
[1746023087933,7.41147,1764.7,1764.3,1.13328]
[1746023088131,6.86057191,1764.7,1764.2,1.13337]
[1746023088329,1.13329,1764.4,1764.3,3.2078]
[1746023088525,2.83297,1764.5,1764.3,0.42041582]
[1746023088731,1.13331,1764.3,1764.2,3.2078]
[1746023088926,1.13326,1764.4,1764.2,3.2078]
[1746023089134,6.04042,1764.8,1764.4,1.13321]
[1746023089433,1.13326,1764.4,1764.3,1.13328]
[1746023089634,1.13326,1764.4,1764.2,3.61863006]
[1746023089635,2.83263,1764.7,1764.2,3.61863006]
[1746023089933,1.13331,1764.3,1764.2,0.41083006]
[1746023090129,1.13329,1764.4,1764.3,1.13328]
[1746023090331,3.2078,1764.7,1764.2,6.46178152]
[1746023090633,1.1332,1764.5,1764.4,1.13321]
[1746023091030,3.2078,1764.7,1764.5,1.13313]
[1746023091031,1.13314,1764.6,1764.5,1.13313]
[1746023091226,1.13318,1764.5,1764.4,7.0358]
[1746023092224,1.13318,1764.5,1764.4,3.2078]
[1746023092632,1.13318,1764.5,1764.4,4.34104]
[1746023092834,1.13313,1764.6,1764.4,3.2078]
[1746023093038,1.13318,1764.5,1764.4,4.341]
[1746023093239,1.13313,1764.6,1764.4,4.341]
[1746023093439,1.13313,1764.6,1764.5,1.13318]
[1746023093635,3.2078,1764.8,1764.4,3.2078]
[1746023093840,1.13295,1764.9,1764.8,1.13296]
[1746023094042,1.1329,1765.0,1764.9,1.13291]
[1746023094242,1.13298,1764.8,1764.7,1.13299]
[1746023094542,1.13343,1764.2,1764.1,1.13341]
[1746023094840,1.13343,1764.2,1764.1,1.13343]
[1746023095041,1.13343,1764.1,1764.0,7.0358]
[1746023095240,1.13343,1764.1,1764.0,3.2078]
[1746023095644,1.13343,1764.1,1764.0,4.3413]
[1746023095839,1.13343,1764.1,1764.0,45.1413]
[1746023096143,2.83316,1764.4,1764.0,44.0078]
[1746023096338,1.13335,1764.3,1764.2,1.13335]
[1746023096532,8.87396,1764.5,1764.0,44.42432162]
[1746023096737,1.13337,1764.2,1764.1,5.53919]
[1746023096939,3.2078,1764.7,1764.1,4.4058]
[1746023097236,4.34077,1764.9,1764.5,1.13311]
[1746023097436,3.2078,1765.4,1764.7,3.2078]
[1746023097740,4.6694,1765.7,1765.2,3.2078]
[1746023097938,3.2078,1765.9,1765.6,1.13245]
[1746023098137,3.2078,1765.9,1765.7,4.7714]
[1746023098138,1.13233,1765.9,1765.7,4.7714]
[1746023098442,1.13234,1765.8,1765.7,4.7714]
[1746023098645,1.13244,1765.7,1765.3,4.34041]
[1746023098945,1.13239,1765.8,1765.5,3.2078]
[1746023099245,1.13239,1765.8,1765.6,4.7714]
[1746023099542,1.13232,1765.9,1765.6,4.7714]
[1746023099743,1.13232,1765.9,1765.7,3.2078]
[1746023099940,5.80165,1766.0,1765.6,5.90384]
[1746023100144,5.72849,1765.9,1765.7,3.2078]
[1746023100442,4.6694,1766.0,1765.6,4.7714]
[1746023100738,10.39785,1766.0,1765.7,1.13237]
[1746023100945,1.13228,1765.9,1765.8,4.6441]
[1746023101134,1.13241,1765.7,1765.6,40.8]
[1746023101339,1.13241,1765.7,1765.3,3.2078]
[1746023101340,1.1326,1765.4,1765.3,3.2078]
[1746023101540,1.13258,1765.5,1765.3,3.2078]
[1746023102034,1.13258,1765.5,1765.4,4.6441]
[1746023102534,1.1326,1765.4,1765.3,3.2078]
[1746023102740,5.7288,1765.4,1765.3,3.2078]
[1746023103043,10.7288,1765.4,1765.3,3.2078]
[1746023103246,1.13273,1765.2,1765.1,4.6441]
[1746023103438,1.13273,1765.2,1764.8,8.95086]
[1746023103439,3.2078,1765.3,1764.8,3.2078]
[1746023103644,1.13289,1765.0,1764.8,3.6102922]
[1746023103836,4.5365,1765.1,1764.9,4.8212]
[1746023104243,4.5365,1765.1,1764.8,3.2078]
[1746023104543,1.13292,1764.9,1764.8,3.2078]
[1746023104936,6.13292,1764.9,1764.8,3.2078]
[1746023105346,1.13292,1764.9,1764.8,3.2078]
[1746023105545,2.83183,1765.2,1764.8,3.2078]
[1746023105740,1.13305,1764.7,1764.6,4.8212]
[1746023106246,2.83249,1764.8,1764.4,3.2078]
[1746023106447,1.13318,1764.6,1764.5,4.4054]
[1746023106842,3.2078,1765.1,1764.5,4.4054]
[1746023107042,1.13311,1764.6,1764.5,7.6132]
[1746023107342,6.04065,1764.6,1764.2,0.4088379]
[1746023107546,4.5856,1764.5,1764.4,3.2078]
[1746023107748,1.13343,1764.1,1764.0,7.6132]
[1746023107944,7.7934,1764.5,1764.0,7.6132]
[1746023108243,7.7934,1764.5,1763.6,15.78811868]
[1746023108244,1.1335,1764.0,1763.9,3.2078]
[1746023108442,3.2078,1764.1,1763.6,10.72054868]
[1746023108645,4.34149,1763.7,1763.6,7.51274868]
[1746023108848,1.13382,1763.5,1763.4,11.30631986]
[1746023109048,4.34162,1763.5,1763.4,9.71671854]
[1746023109349,9.34162,1763.5,1763.4,9.71671854]
[1746023109563,1.13408,1763.1,1763.0,4.49580709]
[1746023109747,2.83552,1762.9,1762.4,3.2078]
[1746023109942,1.13427,1762.8,1762.7,12.44300107]
[1746023110148,5.443,1763.1,1762.9,12.44300107]
[1746023110343,5.443,1763.1,1762.8,14.95277743]
[1746023110547,1.13421,1762.9,1762.8,14.95277743]
[1746023110753,1.13418,1763.0,1762.9,12.44300107]
[1746023110948,1.13418,1763.0,1762.9,17.08310107]
[1746023111258,1.13421,1762.9,1762.8,14.95277743]
[1746023111745,1.13419,1763.0,1762.8,37.3957785]
[1746023111946,1.13409,1763.1,1763.0,12.44300107]
[1746023112251,8.6508,1763.6,1763.0,16.78490107]
[1746023112442,1.1339,1763.4,1763.3,12.44300107]
[1746023112647,4.7829,1763.8,1763.4,12.44300107]
[1746023112853,1.13376,1763.6,1763.5,12.44300107]
[1746023113051,3.2078,1763.6,1763.4,12.44300107]
[1746023113347,1.13388,1763.4,1763.3,12.44300107]
[1746023113551,1.13395,1763.3,1763.2,4.6962]
[1746023113751,4.57285,1763.3,1763.2,17.13920107]
[1746023113954,4.57285,1763.3,1763.2,4.6962]
[1746023114645,1.13421,1762.9,1762.8,14.95277743]
[1746023114848,1.13421,1762.9,1762.8,29.64897743]
[1746023115048,1.13421,1762.9,1762.8,42.0919785]
[1746023115255,1.13417,1763.0,1762.8,27.13920107]
[1746023115450,1.13417,1763.0,1762.9,4.7252]
[1746023115650,1.13427,1762.8,1762.7,3.2078]
[1746023115854,1.13433,1762.7,1762.6,4.7252]
[1746023116248,1.13433,1762.7,1762.6,27.16820107]
[1746023116851,3.4389,1762.9,1762.6,27.16820107]
[1746023117058,1.13427,1762.8,1762.7,17.16820107]
[1746023117255,3.4389,1763.1,1762.7,17.16820107]
[1746023117450,1.13414,1763.0,1762.9,12.44300107]
[1746023117650,1.13414,1763.0,1762.9,17.16820107]
[1746023117850,1.13414,1763.0,1762.9,4.7252]
[1746023118151,5.445,1763.2,1762.9,27.16820107]
[1746023118351,1.13412,1763.1,1763.0,12.44300107]
[1746023118550,1.13412,1763.1,1763.0,17.21660107]
[1746023118852,1.13398,1763.3,1763.1,1.13408]
[1746023119052,1.1339,1763.4,1763.2,17.21660107]
[1746023119257,1.1339,1763.4,1763.3,12.44300107]
[1746023119759,1.13395,1763.3,1763.2,4.7736]
[1746023119952,4.57245,1763.3,1763.2,4.7736]
[1746023120145,12.0923,1763.3,1762.8,3.2078]
[1746023120351,1.13421,1762.9,1762.8,15.65080107]
[1746023120656,1.13421,1762.9,1762.8,13.2078]
[1746023120851,1.13421,1762.9,1762.8,25.65080107]
[1746023121055,1.13433,1762.7,1762.6,3.2078]
[1746023121256,1.13421,1762.9,1762.8,12.44300107]
[1746023121658,3.4385,1762.9,1762.6,3.2078]
[1746023121858,1.13427,1762.8,1762.7,12.44300107]
[1746023122260,1.13427,1762.8,1762.7,22.44300107]
[1746023122455,1.13433,1762.7,1762.6,3.2078]
[1746023122657,1.13433,1762.7,1762.6,13.2078]
[1746023122961,1.13446,1762.5,1762.4,3.2078]
[1746023123364,1.13446,1762.5,1762.4,25.65080107]
[1746023123666,5.67215,1762.6,1761.9,9.58298522]
[1746023123960,1.13459,1762.3,1762.2,12.44300107]
[1746023124363,1.13478,1762.0,1761.9,4.5165]
[1746023124560,1.13478,1762.0,1761.9,14.5165]
[1746023124757,2.83657,1762.3,1761.9,26.95950107]
[1746023125061,1.13459,1762.3,1762.2,15.65080107]
[1746023125261,1.13459,1762.3,1762.2,12.44300107]
[1746023125961,2.83657,1762.3,1761.9,3.2078]
[1746023126263,1.13459,1762.3,1762.2,12.44300107]
[1746023126465,1.13458,1762.4,1762.2,12.44300107]
[1746023126667,1.13456,1762.4,1762.3,12.44300107]
[1746023127160,1.13456,1762.4,1762.3,22.44300107]
[1746023127356,1.13456,1762.4,1762.3,25.65080107]
[1746023127762,1.13456,1762.4,1762.3,22.44300107]
[1746023128059,1.13466,1762.2,1762.1,3.2078]
[1746023128363,1.13466,1762.2,1762.1,13.2078]
[1746023128553,1.13466,1762.2,1762.1,15.65080107]
[1746023129056,1.13466,1762.2,1762.1,3.2078]
[1746023129657,3.2078,1762.2,1761.6,7.6827]
[1746023129866,1.13485,1761.9,1761.8,12.44300107]
[1746023130159,8.4858,1762.0,1761.7,12.44300107]
[1746023130360,2.83729,1761.8,1761.2,10.79166]
[1746023130562,1.13498,1761.7,1761.6,12.44300107]
[1746023130958,2.83713,1761.9,1761.4,3.2078]
[1746023131258,1.13504,1761.6,1761.5,12.44300107]
[1746023131459,1.13511,1761.5,1761.4,22.44300107]
[1746023131660,1.13509,1761.6,1761.5,12.44300107]
[1746023131861,1.13491,1761.8,1761.7,12.44300107]
[1746023132061,1.13491,1761.8,1761.7,15.65080107]
[1746023132365,1.13475,1762.1,1761.8,1.13488]
[1746023132567,2.83653,1762.3,1762.1,12.44300107]
[1746023132964,1.13472,1762.1,1762.0,3.2078]
[1746023133163,1.13472,1762.1,1762.0,13.2078]
[1746023133367,1.13472,1762.1,1762.0,22.44300107]
[1746023134153,1.13472,1762.1,1762.0,25.65080107]
[1746023134361,1.13472,1762.1,1762.0,22.44300107]
[1746023134562,1.13472,1762.1,1762.0,25.65080107]
[1746023134960,1.13472,1762.1,1762.0,22.44300107]
[1746023135865,1.13502,1761.7,1761.2,12.49466]
[1746023136163,1.13477,1762.1,1762.0,12.44300107]
[1746023136567,1.13477,1762.1,1762.0,22.44300107]
[1746023136864,1.13477,1762.1,1762.0,26.89980107]
[1746023137054,1.13472,1762.1,1762.0,26.89980107]
[1746023137256,1.13472,1762.1,1761.8,9.2034]
[1746023137257,2.83649,1762.3,1761.7,3.2078]
[1746023137457,1.13511,1761.5,1761.4,4.4568]
[1746023137867,1.13511,1761.5,1761.4,27.97317107]
[1746023138770,1.135,1761.7,1761.5,1.13507]
[1746023138968,1.135,1761.7,1761.6,7.6646]
[1746023139166,1.135,1761.7,1761.6,17.97317107]
[1746023139365,1.135,1761.7,1761.6,27.97317107]
[1746023139565,1.135,1761.7,1761.6,24.76537107]
[1746023139761,1.135,1761.7,1761.6,27.97317107]
[1746023140270,1.135,1761.7,1761.6,24.76537107]
[1746023140663,1.135,1761.7,1761.6,27.97317107]
[1746023141269,1.135,1761.7,1761.6,3.3179]
[1746023142365,5.6575,1761.7,1761.6,3.3179]
[1746023142666,1.13511,1761.5,1761.4,3.2078]
[1746023142872,1.13511,1761.5,1761.4,13.2078]
[1746023143067,1.13511,1761.5,1761.4,23.51637107]
[1746023143263,13.2618,1761.5,1760.4,1.13577]
[1746023143464,1.13536,1761.1,1761.0,10.30857107]
[1746023143772,1.13536,1761.1,1760.8,10.30857107]
[1746023143773,1.13549,1760.9,1760.8,10.30857107]
[1746023144169,3.2078,1761.2,1760.8,20.30857107]
[1746023144374,1.13528,1761.3,1761.1,10.30857107]
[1746023144576,1.13524,1761.3,1761.2,10.30857107]
[1746023144776,1.13535,1761.2,1760.9,10.39425]
[1746023145069,1.13517,1761.4,1761.3,10.30857107]
[1746023145274,2.83805,1761.4,1761.1,10.30857107]
[1746023145461,1.1353,1761.2,1761.1,10.30857107]
[1746023145866,1.13543,1761.0,1760.9,4.595]
[1746023146066,1.13543,1761.0,1760.9,14.595]
[1746023146266,1.13543,1761.0,1760.9,24.90357107]
[1746023146471,2.83796,1761.4,1760.9,28.11137107]
[1746023146675,1.13539,1761.1,1760.9,15.73046]
[1746023146866,1.13517,1761.4,1761.3,10.30857107]
[1746023147267,1.13517,1761.4,1761.3,20.30857107]
[1746023148175,1.13517,1761.4,1761.3,23.51637107]
[1746023148570,7.8913,1761.8,1761.3,20.30857107]
[1746023148771,2.83681,1762.1,1761.7,10.30857107]
[1746023148973,1.13478,1762.0,1761.9,10.30857107]
[1746023149366,2.83714,1761.9,1761.6,0.42050327]
[1746023149574,1.13485,1761.9,1761.8,10.30857107]
[1746023150079,1.13491,1761.8,1761.7,3.2078]
[1746023150279,1.13511,1761.5,1761.4,10.79167]
[1746023150576,1.13511,1761.5,1761.4,23.99947]
[1746023150776,2.83745,1761.8,1761.4,31.10024107]
[1746023150974,1.13504,1761.6,1761.5,4.3429]
[1746023151178,6.04486,1762.0,1761.7,10.30857107]
[1746023151379,1.13498,1761.7,1761.6,1.13504]
[1746023151574,1.13485,1761.9,1761.8,10.30857107]
[1746023151782,1.13498,1761.7,1761.6,13.2078]
[1746023151979,1.13498,1761.7,1761.4,9.6565]
[1746023151980,1.13504,1761.6,1761.5,0.41860669]
[1746023152175,1.13502,1761.7,1761.6,10.30857107]
[1746023152380,1.13498,1761.7,1761.6,10.30857107]
[1746023152680,1.13511,1761.5,1761.4,9.6565]
[1746023152875,1.13511,1761.5,1761.4,19.6565]
[1746023153078,1.13511,1761.5,1761.4,20.38112151]
[1746023153472,1.13511,1761.5,1761.4,19.96507107]
[1746023153678,1.13511,1761.5,1761.4,9.6565]
[1746023153878,1.13524,1761.3,1761.2,3.2078]
[1746023154079,1.13536,1761.1,1761.0,4.75798232]
[1746023154279,1.13511,1761.5,1761.4,10.30857107]
[1746023154480,6.04525,1761.8,1761.4,10.30857107]
[1746023154679,1.13504,1761.6,1761.5,10.30857107]
[1746023154878,1.13502,1761.7,1761.6,10.30857107]
[1746023155182,1.13497,1761.8,1761.7,10.30857107]
[1746023155387,1.13504,1761.6,1761.5,3.2078]
[1746023155682,1.13504,1761.6,1761.5,23.51637107]
[1746023156070,1.13504,1761.6,1761.5,24.65148107]
[1746023156274,12.74444,1761.9,1761.5,24.65148107]
[1746023156275,5.055,1761.9,1761.6,1.13504]
[1746023156475,1.1349,1761.9,1761.7,11.44355107]
[1746023156681,1.1349,1761.9,1761.8,10.30857107]
[1746023156885,1.1349,1761.9,1761.8,14.85967107]
[1746023157975,6.04446,1762.2,1761.8,24.85967107]
[1746023158183,1.13483,1762.0,1761.9,10.30857107]
[1746023158480,1.13485,1761.9,1761.8,10.0]
[1746023158670,1.13498,1761.7,1761.6,8.159]